[Event "Early-Titled-Tuesday-Blitz-June-18-2024"]
[Site "Chess.com"]
[Date "2024.06.18"]
[Round "6"]
[White "A4RookA3"]
[Black "ningyzhou"]
[Result "0-1"]
[WhiteElo "2430"]
[BlackElo "2158"]
[TimeControl "180+1"]
[EndTime "9:09:46 PDT"]
[Termination "ningyzhou won by checkmate"]

1. d4 {[%clk 0:02:59.6]} 1... d5 {[%clk 0:02:58.8]} 2. Nc3 {[%clk 0:02:59.9]}
2... Nf6 {[%clk 0:02:46.8]} 3. Bf4 {[%clk 0:02:59]} 3... Bf5 {[%clk 0:02:36.5]}
4. e3 {[%clk 0:02:55.4]} 4... c6 {[%clk 0:02:35.8]} 5. Nf3 {[%clk 0:02:54.3]}
5... g6 {[%clk 0:02:32.7]} 6. Ne5 {[%clk 0:02:47.1]} 6... Bg7 {[%clk 0:02:32.5]}
7. h4 {[%clk 0:01:53.8]} 7... h5 {[%clk 0:02:29.7]} 8. Bd3 {[%clk 0:01:51.6]}
8... Bxd3 {[%clk 0:02:28.2]} 9. Qxd3 {[%clk 0:01:52.5]} 9... Nbd7 {[%clk
0:02:28.1]} 10. O-O-O {[%clk 0:01:51.3]} 10... Nxe5 {[%clk 0:02:21.1]} 11. Bxe5
{[%clk 0:01:52.2]} 11... Qd7 {[%clk 0:02:18.9]} 12. e4 {[%clk 0:01:43.9]} 12...
O-O {[%clk 0:02:15.8]} 13. Bxf6 {[%clk 0:01:18.1]} 13... exf6 {[%clk 0:02:13.3]}
14. exd5 {[%clk 0:01:18]} 14... cxd5 {[%clk 0:02:12.5]} 15. f3 {[%clk 0:00:57]}
15... f5 {[%clk 0:02:01.8]} 16. Rdg1 {[%clk 0:00:38.1]} 16... Bh6+ {[%clk
0:01:57.8]} 17. Kb1 {[%clk 0:00:36.3]} 17... Rfe8 {[%clk 0:01:54.1]} 18. a3
{[%clk 0:00:27.7]} 18... Re3 {[%clk 0:01:34.8]} 19. Qb5 {[%clk 0:00:20.9]} 19...
Qxb5 {[%clk 0:01:32.1]} 20. Nxb5 {[%clk 0:00:21.8]} 20... a6 {[%clk 0:01:32.5]}
21. Nc3 {[%clk 0:00:19.7]} 21... Rd8 {[%clk 0:01:33.1]} 22. Re1 {[%clk
0:00:19.8]} 22... Kf8 {[%clk 0:01:27.4]} 23. Rxe3 {[%clk 0:00:19.8]} 23... Bxe3
{[%clk 0:01:27.8]} 24. Rd1 {[%clk 0:00:20.7]} 24... Bf2 {[%clk 0:01:17.7]} 25.
Na4 {[%clk 0:00:16.4]} 25... Bxh4 {[%clk 0:01:16.8]} 26. Nc5 {[%clk 0:00:16.8]}
26... b6 {[%clk 0:01:12.3]} 27. Nxa6 {[%clk 0:00:16.9]} 27... Bg3 {[%clk
0:01:05.7]} 28. Rd3 {[%clk 0:00:17]} 28... Ra8 {[%clk 0:01:02.9]} 29. Nb4 {[%clk
0:00:16.8]} 29... Rd8 {[%clk 0:00:58.2]} 30. Rc3 {[%clk 0:00:16.7]} 30... g5
{[%clk 0:00:52.9]} 31. Rc6 {[%clk 0:00:13.6]} 31... g4 {[%clk 0:00:50.3]} 32.
Rxb6 {[%clk 0:00:10.1]} 32... h4 {[%clk 0:00:48.1]} 33. Nd3 {[%clk 0:00:06.6]}
33... Kg7 {[%clk 0:00:40.9]} 34. fxg4 {[%clk 0:00:01.2]} 34... fxg4 {[%clk
0:00:39]} 35. a4 {[%clk 0:00:01]} 35... h3 {[%clk 0:00:38.3]} 36. gxh3 {[%clk
0:00:01.9]} 36... gxh3 {[%clk 0:00:38.5]} 37. a5 {[%clk 0:00:02.5]} 37... h2
{[%clk 0:00:37.3]} 38. a6 {[%clk 0:00:03.1]} 38... h1=Q+ {[%clk 0:00:37.2]} 39.
Ka2 {[%clk 0:00:04]} 39... Ra8 {[%clk 0:00:33.7]} 40. Nc5 {[%clk 0:00:03.4]}
40... Qf1 {[%clk 0:00:30.5]} 41. c3 {[%clk 0:00:01.7]} 41... Qc4+ {[%clk
0:00:29.8]} 42. Kb1 {[%clk 0:00:02.3]} 42... Bc7 {[%clk 0:00:26.6]} 43. Rc6
{[%clk 0:00:01.7]} 43... Qf1+ {[%clk 0:00:20.2]} 44. Ka2 {[%clk 0:00:01.9]}
44... Bd8 {[%clk 0:00:19.4]} 45. Rd6 {[%clk 0:00:01.2]} 45... Be7 {[%clk
0:00:18]} 46. Rc6 {[%clk 0:00:02.1]} 46... Bxc5 {[%clk 0:00:17.9]} 47. Rxc5
{[%clk 0:00:03]} 47... Rxa6+ {[%clk 0:00:18]} 48. Kb3 {[%clk 0:00:03.9]} 48...
Qd1+ {[%clk 0:00:17.8]} 49. Kb4 {[%clk 0:00:04.1]} 49... Qa4# {[%clk 0:00:18.3]}
0-1

[Event "Early-Titled-Tuesday-Blitz-June-18-2024"]
[Site "Chess.com"]
[Date "2024.06.18"]
[Round "6"]
[White "tptagain"]
[Black "Karateloru"]
[Result "1-0"]
[WhiteElo "2943"]
[BlackElo "2780"]
[TimeControl "180+1"]
[EndTime "9:09:47 PDT"]
[Termination "tptagain won by resignation"]

1. d4 {[%clk 0:03:00.9]} 1... Nf6 {[%clk 0:02:59.2]} 2. Nf3 {[%clk 0:03:01.3]}
2... e6 {[%clk 0:02:59.3]} 3. Bg5 {[%clk 0:03:01.7]} 3... d5 {[%clk 0:02:58.9]}
4. Nbd2 {[%clk 0:03:01.4]} 4... Nbd7 {[%clk 0:02:58.7]} 5. e3 {[%clk 0:03:00.7]}
5... Be7 {[%clk 0:02:58.3]} 6. Bd3 {[%clk 0:03:00.5]} 6... b6 {[%clk 0:02:58]}
7. Ne5 {[%clk 0:02:51.9]} 7... Nxe5 {[%clk 0:02:53.6]} 8. dxe5 {[%clk
0:02:52.8]} 8... Nd7 {[%clk 0:02:54.1]} 9. Bxe7 {[%clk 0:02:53.3]} 9... Qxe7
{[%clk 0:02:55]} 10. f4 {[%clk 0:02:53.5]} 10... Bb7 {[%clk 0:02:53.5]} 11. Qg4
{[%clk 0:02:52.8]} 11... f5 {[%clk 0:02:50.5]} 12. exf6 {[%clk 0:02:36.8]} 12...
gxf6 {[%clk 0:02:51.3]} 13. O-O-O {[%clk 0:02:26.7]} 13... O-O-O {[%clk
0:02:49.7]} 14. g3 {[%clk 0:02:22.9]} 14... h5 {[%clk 0:02:38.5]} 15. Qh4 {[%clk
0:02:08]} 15... Rdg8 {[%clk 0:02:33.5]} 16. Be2 {[%clk 0:02:03.3]} 16... d4
{[%clk 0:01:54.2]} 17. e4 {[%clk 0:02:03.4]} 17... Nc5 {[%clk 0:01:53.9]} 18.
Bf3 {[%clk 0:02:03.5]} 18... d3 {[%clk 0:01:53.8]} 19. Rhe1 {[%clk 0:01:59.7]}
19... dxc2 {[%clk 0:01:51.6]} 20. Kxc2 {[%clk 0:01:59.8]} 20... Rd8 {[%clk
0:01:33.5]} 21. Re3 {[%clk 0:01:39.2]} 21... Rd4 {[%clk 0:01:14.9]} 22. e5
{[%clk 0:01:39.2]} 22... Bxf3 {[%clk 0:01:12.1]} 23. Nxf3 {[%clk 0:01:38.8]}
23... Rxd1 {[%clk 0:01:11.4]} 24. Kxd1 {[%clk 0:01:39.7]} 24... Qd7+ {[%clk
0:01:10.7]} 25. Ke1 {[%clk 0:01:36.9]} 25... f5 {[%clk 0:00:59.6]} 26. Kf2
{[%clk 0:01:09.1]} 26... Ne4+ {[%clk 0:00:54.5]} 27. Kg2 {[%clk 0:01:06.9]}
27... Qc6 {[%clk 0:00:42.6]} 28. Re2 {[%clk 0:01:04.2]} 28... Rd8 {[%clk
0:00:19.3]} 29. Qxh5 {[%clk 0:01:00.4]} 29... Rd3 {[%clk 0:00:19.2]} 30. h4
{[%clk 0:00:26.1]} 30... Kb7 {[%clk 0:00:18.6]} 31. Kh2 {[%clk 0:00:24.2]} 31...
Qc1 {[%clk 0:00:17.7]} 32. Rg2 {[%clk 0:00:21.9]} 32... Qf1 {[%clk 0:00:17.4]}
33. Ng1 {[%clk 0:00:17.7]} 33... Nf2 {[%clk 0:00:17.4]} 34. Qe2 {[%clk
0:00:14.3]} 34... Ng4+ {[%clk 0:00:15.8]} 35. Kh1 {[%clk 0:00:06.8]} 35... Qb1
{[%clk 0:00:15.2]} 36. h5 {[%clk 0:00:04]} 36... Rd8 {[%clk 0:00:14.8]} 37. Qf3+
{[%clk 0:00:03.7]} 37... Kb8 {[%clk 0:00:14.7]} 38. Re2 {[%clk 0:00:03.3]} 38...
Rh8 {[%clk 0:00:14.7]} 39. Kg2 {[%clk 0:00:03.6]} 39... Rxh5 {[%clk 0:00:14.8]}
40. Nh3 {[%clk 0:00:04.2]} 40... Rh8 {[%clk 0:00:12.5]} 41. Rd2 {[%clk
0:00:04.5]} 41... Qc1 {[%clk 0:00:11.3]} 42. Qc3 {[%clk 0:00:04.2]} 42... Qe1
{[%clk 0:00:10.4]} 43. Rd8+ {[%clk 0:00:04]} 43... Rxd8 {[%clk 0:00:10.1]} 44.
Qxe1 {[%clk 0:00:04.9]} 44... Rd3 {[%clk 0:00:10.4]} 45. Nf2 {[%clk 0:00:05.2]}
45... Ne3+ {[%clk 0:00:09.3]} 46. Kh3 {[%clk 0:00:05.8]} 1-0

[Event "Early-Titled-Tuesday-Blitz-June-18-2024"]
[Site "Chess.com"]
[Date "2024.06.18"]
[Round "6"]
[White "DonCiao"]
[Black "Senn71"]
[Result "0-1"]
[WhiteElo "2095"]
[BlackElo "2344"]
[TimeControl "180+1"]
[EndTime "9:09:48 PDT"]
[Termination "Senn71 won on time"]

1. c4 {[%clk 0:03:00.9]} 1... c6 {[%clk 0:02:59.1]} 2. g3 {[%clk 0:03:01.4]}
2... d5 {[%clk 0:02:59.3]} 3. Nf3 {[%clk 0:03:01.6]} 3... Nf6 {[%clk 0:02:59.8]}
4. Bg2 {[%clk 0:03:01.8]} 4... Bg4 {[%clk 0:02:59.7]} 5. Ne5 {[%clk 0:03:00.4]}
5... Bh5 {[%clk 0:02:59.2]} 6. cxd5 {[%clk 0:02:59.8]} 6... Nxd5 {[%clk
0:02:54.9]} 7. O-O {[%clk 0:02:54.6]} 7... Nd7 {[%clk 0:02:50.7]} 8. Nc4 {[%clk
0:02:39.7]} 8... e6 {[%clk 0:02:42.1]} 9. Nc3 {[%clk 0:02:36.6]} 9... Be7 {[%clk
0:02:40.2]} 10. f3 {[%clk 0:02:20.4]} 10... O-O {[%clk 0:02:38.1]} 11. e4 {[%clk
0:02:20.1]} 11... N5b6 {[%clk 0:02:36.7]} 12. Ne3 {[%clk 0:02:15.4]} 12... c5
{[%clk 0:02:19.7]} 13. a4 {[%clk 0:02:08.4]} 13... Ne5 {[%clk 0:02:12.1]} 14. a5
{[%clk 0:01:54.4]} 14... Nbc4 {[%clk 0:02:11.2]} 15. Nxc4 {[%clk 0:01:53.8]}
15... Nxc4 {[%clk 0:02:10.1]} 16. Qe2 {[%clk 0:01:53.9]} 16... Ne5 {[%clk
0:02:06.2]} 17. g4 {[%clk 0:01:49.3]} 17... Bg6 {[%clk 0:02:04.8]} 18. f4 {[%clk
0:01:47.4]} 18... Qd4+ {[%clk 0:01:48.3]} 19. Kh1 {[%clk 0:01:45.7]} 19... Nd3
{[%clk 0:01:25.8]} 20. f5 {[%clk 0:01:43.2]} 20... Bh4 {[%clk 0:01:20.3]} 21.
Nd1 {[%clk 0:01:29.6]} 21... Rad8 {[%clk 0:00:42.9]} 22. fxg6 {[%clk 0:01:23.5]}
22... fxg6 {[%clk 0:00:36.5]} 23. Ne3 {[%clk 0:01:13.4]} 23... Nf2+ {[%clk
0:00:32.6]} 24. Kg1 {[%clk 0:01:11.2]} 24... Nxe4 {[%clk 0:00:32.4]} 25. Bxe4
{[%clk 0:01:08.4]} 25... Qxe4 {[%clk 0:00:32.5]} 26. Ra3 {[%clk 0:00:49.3]}
26... Bf6 {[%clk 0:00:32]} 27. Rb3 {[%clk 0:00:45.9]} 27... Bd4 {[%clk
0:00:30.2]} 28. d3 {[%clk 0:00:38.3]} 28... Qc6 {[%clk 0:00:29.2]} 29. Bd2
{[%clk 0:00:33.7]} 29... g5 {[%clk 0:00:28.7]} 30. Qg2 {[%clk 0:00:29.1]} 30...
Rxf1+ {[%clk 0:00:24.9]} 31. Kxf1 {[%clk 0:00:27.8]} 31... Rf8+ {[%clk
0:00:24.5]} 32. Kg1 {[%clk 0:00:22]} 32... Rf4 {[%clk 0:00:17.8]} 33. Qxc6
{[%clk 0:00:19.3]} 33... bxc6 {[%clk 0:00:17.7]} 34. Kg2 {[%clk 0:00:09.2]}
34... h5 {[%clk 0:00:16.2]} 35. gxh5 {[%clk 0:00:08.6]} 35... g4 {[%clk
0:00:16.6]} 36. Nc4 {[%clk 0:00:06.6]} 36... Rf2+ {[%clk 0:00:16.2]} 37. Kg3
{[%clk 0:00:06.9]} 37... Kh7 {[%clk 0:00:13.8]} 38. Kxg4 {[%clk 0:00:07]} 38...
Rg2+ {[%clk 0:00:13.2]} 39. Kf3 {[%clk 0:00:05.3]} 39... Rxh2 {[%clk 0:00:13.1]}
40. Bf4 {[%clk 0:00:04.4]} 40... Rxh5 {[%clk 0:00:12.7]} 41. Rb7 {[%clk
0:00:03.9]} 41... Rh3+ {[%clk 0:00:13.2]} 42. Kg4 {[%clk 0:00:03.1]} 42... Rxd3
{[%clk 0:00:12.9]} 43. Be5 {[%clk 0:00:02.5]} 43... Bxe5 {[%clk 0:00:12.4]} 44.
Nxe5 {[%clk 0:00:03.1]} 44... Rd4+ {[%clk 0:00:12.9]} 45. Kg5 {[%clk 0:00:02.8]}
45... Rb4 {[%clk 0:00:13.1]} 46. a6 {[%clk 0:00:01]} 46... Rb5 {[%clk
0:00:11.3]} 47. Nxc6 {[%clk 0:00:01]} 47... Rb6 {[%clk 0:00:01.7]} 48. Kf4
{[%clk 0:00:01.9]} 48... Rxa6 {[%clk 0:00:01.1]} 49. Nd8 {[%clk 0:00:01.4]}
49... Ra4+ {[%clk 0:00:01.9]} 0-1

[Event "Early-Titled-Tuesday-Blitz-June-18-2024"]
[Site "Chess.com"]
[Date "2024.06.18"]
[Round "6"]
[White "Blitzking642"]
[Black "Kors67"]
[Result "1-0"]
[WhiteElo "2506"]
[BlackElo "2280"]
[TimeControl "180+1"]
[EndTime "9:09:50 PDT"]
[Termination "Blitzking642 won on time"]

1. d4 {[%clk 0:03:00.9]} 1... Nf6 {[%clk 0:02:59.4]} 2. c4 {[%clk 0:03:00.6]}
2... c5 {[%clk 0:02:59.9]} 3. d5 {[%clk 0:02:59.9]} 3... b5 {[%clk 0:03:00.4]}
4. cxb5 {[%clk 0:03:00.1]} 4... a6 {[%clk 0:03:00.9]} 5. b6 {[%clk 0:03:00.3]}
5... g6 {[%clk 0:03:01]} 6. Nc3 {[%clk 0:03:00.2]} 6... Bg7 {[%clk 0:03:01.4]}
7. e4 {[%clk 0:03:00.9]} 7... d6 {[%clk 0:03:01.7]} 8. Nf3 {[%clk 0:03:01.2]}
8... O-O {[%clk 0:03:02.1]} 9. Nd2 {[%clk 0:03:00.4]} 9... Nbd7 {[%clk
0:03:02.4]} 10. a4 {[%clk 0:02:59.3]} 10... a5 {[%clk 0:03:01.9]} 11. Bb5 {[%clk
0:02:58.8]} 11... Nxb6 {[%clk 0:03:01.6]} 12. O-O {[%clk 0:02:58.3]} 12... e6
{[%clk 0:03:00.7]} 13. Nc4 {[%clk 0:02:47.1]} 13... exd5 {[%clk 0:02:53.6]} 14.
Nxb6 {[%clk 0:02:45.5]} 14... Qxb6 {[%clk 0:02:53.2]} 15. exd5 {[%clk
0:02:39.7]} 15... Bd7 {[%clk 0:02:36]} 16. Bf4 {[%clk 0:02:31.9]} 16... Rfe8
{[%clk 0:02:24.4]} 17. h3 {[%clk 0:02:27.4]} 17... Bxb5 {[%clk 0:02:05.9]} 18.
Nxb5 {[%clk 0:02:25.9]} 18... Rad8 {[%clk 0:01:55.1]} 19. Qd3 {[%clk 0:02:12.2]}
19... Ne4 {[%clk 0:01:51.2]} 20. Rae1 {[%clk 0:01:55.8]} 20... f5 {[%clk
0:01:47.6]} 21. b3 {[%clk 0:01:47.6]} 21... Rd7 {[%clk 0:01:22.2]} 22. Qc4
{[%clk 0:01:46.3]} 22... Be5 {[%clk 0:01:02.1]} 23. Bxe5 {[%clk 0:01:41.6]}
23... dxe5 {[%clk 0:00:48.3]} 24. f3 {[%clk 0:01:30.4]} 24... Nd6 {[%clk
0:00:48.2]} 25. Nxd6 {[%clk 0:01:23.7]} 25... Qxd6 {[%clk 0:00:46.4]} 26. Rd1
{[%clk 0:01:21.6]} 26... Rb7 {[%clk 0:00:42.9]} 27. Rfe1 {[%clk 0:01:17.2]}
27... Rb4 {[%clk 0:00:42.5]} 28. Qc3 {[%clk 0:01:17.5]} 28... Rd4 {[%clk
0:00:42.3]} 29. Rxd4 {[%clk 0:01:13.2]} 29... cxd4 {[%clk 0:00:42.2]} 30. Qc6
{[%clk 0:01:09.4]} 30... Qxc6 {[%clk 0:00:38.1]} 31. dxc6 {[%clk 0:01:10.3]}
31... Kf7 {[%clk 0:00:37.8]} 32. c7 {[%clk 0:00:43.1]} 32... Ke6 {[%clk
0:00:35.3]} 33. Rc1 {[%clk 0:00:41.4]} 33... Kd7 {[%clk 0:00:30.3]} 34. Rc5
{[%clk 0:00:41]} 34... e4 {[%clk 0:00:19.7]} 35. fxe4 {[%clk 0:00:36.3]} 35...
fxe4 {[%clk 0:00:19.9]} 36. Rd5+ {[%clk 0:00:26.1]} 36... Kxc7 {[%clk
0:00:19.7]} 37. Rxd4 {[%clk 0:00:26.7]} 37... Kc6 {[%clk 0:00:17.2]} 38. Kf2
{[%clk 0:00:25.1]} 38... Rb8 {[%clk 0:00:14.8]} 39. Rxe4 {[%clk 0:00:23.1]}
39... Rxb3 {[%clk 0:00:14.7]} 40. Re7 {[%clk 0:00:23.7]} 40... Rb2+ {[%clk
0:00:03.6]} 41. Kf3 {[%clk 0:00:21.3]} 41... Rb3+ {[%clk 0:00:04.1]} 42. Kg4
{[%clk 0:00:16.3]} 42... Rb4+ {[%clk 0:00:03.3]} 43. Kg5 {[%clk 0:00:16.9]}
43... Rxa4 {[%clk 0:00:03.4]} 44. Rxh7 {[%clk 0:00:17]} 44... Kb6 {[%clk
0:00:02.1]} 45. Rh8 {[%clk 0:00:14.7]} 45... Ra2 {[%clk 0:00:01.7]} 46. g4
{[%clk 0:00:13.4]} 46... Kb7 {[%clk 0:00:01.3]} 47. Rh7+ {[%clk 0:00:08.9]} 1-0

[Event "Early-Titled-Tuesday-Blitz-June-18-2024"]
[Site "Chess.com"]
[Date "2024.06.18"]
[Round "6"]
[White "GoltsevDmitry2000"]
[Black "Zhigalko_Sergei"]
[Result "0-1"]
[WhiteElo "2716"]
[BlackElo "2993"]
[TimeControl "180+1"]
[EndTime "9:09:51 PDT"]
[Termination "Zhigalko_Sergei won on time"]

1. e4 {[%clk 0:03:00.2]} 1... c5 {[%clk 0:03:00.3]} 2. Nf3 {[%clk 0:03:00.4]}
2... d6 {[%clk 0:02:59.1]} 3. d4 {[%clk 0:03:01]} 3... cxd4 {[%clk 0:03:00]} 4.
Nxd4 {[%clk 0:03:01.7]} 4... Nf6 {[%clk 0:03:00.4]} 5. Nc3 {[%clk 0:03:01.9]}
5... a6 {[%clk 0:03:00.8]} 6. Be2 {[%clk 0:03:02.2]} 6... Nbd7 {[%clk
0:03:00.2]} 7. O-O {[%clk 0:03:00.7]} 7... g6 {[%clk 0:02:59.9]} 8. Be3 {[%clk
0:02:59.2]} 8... Bg7 {[%clk 0:02:59.8]} 9. f4 {[%clk 0:02:59.7]} 9... O-O {[%clk
0:02:59.8]} 10. Bf3 {[%clk 0:03:00]} 10... Qc7 {[%clk 0:02:50.3]} 11. Qe2 {[%clk
0:02:57.6]} 11... e5 {[%clk 0:02:45]} 12. Nb3 {[%clk 0:02:55]} 12... exf4 {[%clk
0:02:43.1]} 13. Bxf4 {[%clk 0:02:54.5]} 13... Ne5 {[%clk 0:02:43.7]} 14. Rad1
{[%clk 0:02:53.2]} 14... Be6 {[%clk 0:02:43.5]} 15. Bxe5 {[%clk 0:02:41.4]}
15... dxe5 {[%clk 0:02:38]} 16. Nd5 {[%clk 0:02:42]} 16... Bxd5 {[%clk
0:02:32.8]} 17. exd5 {[%clk 0:02:42.2]} 17... e4 {[%clk 0:02:33.7]} 18. Bg4
{[%clk 0:02:11.7]} 18... Rad8 {[%clk 0:02:23.1]} 19. Bh3 {[%clk 0:01:56.7]}
19... b5 {[%clk 0:01:49.3]} 20. c3 {[%clk 0:01:20.6]} 20... Rfe8 {[%clk
0:01:40.2]} 21. Rd4 {[%clk 0:00:30]} 21... Rxd5 {[%clk 0:01:30.9]} 22. Rfd1
{[%clk 0:00:26.9]} 22... Rxd4 {[%clk 0:01:23.5]} 23. Nxd4 {[%clk 0:00:27.8]}
23... Nd5 {[%clk 0:00:47.1]} 24. g3 {[%clk 0:00:24.7]} 24... Qb6 {[%clk
0:00:29.4]} 25. Kh1 {[%clk 0:00:23]} 25... Nf6 {[%clk 0:00:25.5]} 26. Bg2 {[%clk
0:00:22.1]} 26... h5 {[%clk 0:00:25.2]} 27. Nc2 {[%clk 0:00:17.8]} 27... Ng4
{[%clk 0:00:23.1]} 28. Nd4 {[%clk 0:00:15.7]} 28... e3 {[%clk 0:00:20.5]} 29.
Rf1 {[%clk 0:00:08.4]} 29... Bxd4 {[%clk 0:00:18.7]} 30. cxd4 {[%clk 0:00:09.3]}
30... Qxd4 {[%clk 0:00:18.6]} 31. h3 {[%clk 0:00:09.3]} 31... Nf6 {[%clk
0:00:11.6]} 32. Rd1 {[%clk 0:00:08.5]} 32... Qe5 {[%clk 0:00:11]} 33. Rf1 {[%clk
0:00:08.4]} 33... Re6 {[%clk 0:00:10.1]} 34. Rd1 {[%clk 0:00:08]} 34... Qxg3
{[%clk 0:00:09.7]} 35. Rd3 {[%clk 0:00:07.4]} 35... Kg7 {[%clk 0:00:09.2]} 36.
b3 {[%clk 0:00:06.2]} 36... h4 {[%clk 0:00:09.4]} 37. a4 {[%clk 0:00:06.3]}
37... Qf4 {[%clk 0:00:08.6]} 38. axb5 {[%clk 0:00:05.7]} 38... axb5 {[%clk
0:00:08.1]} 39. Rd1 {[%clk 0:00:06]} 39... Nh5 {[%clk 0:00:07.6]} 40. Kg1 {[%clk
0:00:05.6]} 40... Ng3 {[%clk 0:00:07.5]} 41. Qxb5 {[%clk 0:00:05.4]} 41... e2
{[%clk 0:00:06.5]} 42. Re1 {[%clk 0:00:05.7]} 42... Qe3+ {[%clk 0:00:05.8]} 43.
Kh2 {[%clk 0:00:06.1]} 43... Qf4 {[%clk 0:00:05.1]} 44. Kg1 {[%clk 0:00:05]}
44... Qd2 {[%clk 0:00:05.3]} 45. Kf2 {[%clk 0:00:03.7]} 45... Rf6+ {[%clk
0:00:05.2]} 46. Bf3 {[%clk 0:00:03.6]} 46... Rxf3+ {[%clk 0:00:04.5]} 47. Kxf3
{[%clk 0:00:04.5]} 47... Qxe1 {[%clk 0:00:04.5]} 48. Qe5+ {[%clk 0:00:04.5]}
48... Kh7 {[%clk 0:00:04.3]} 49. Kg4 {[%clk 0:00:03.3]} 49... Qf1 {[%clk
0:00:04]} 0-1

[Event "Early-Titled-Tuesday-Blitz-June-18-2024"]
[Site "Chess.com"]
[Date "2024.06.18"]
[Round "6"]
[White "Goryachkina"]
[Black "ATM622"]
[Result "1-0"]
[WhiteElo "2677"]
[BlackElo "2540"]
[TimeControl "180+1"]
[EndTime "9:09:51 PDT"]
[Termination "Goryachkina won on time"]

1. e4 {[%clk 0:03:00.2]} 1... c6 {[%clk 0:02:59]} 2. d4 {[%clk 0:02:59]} 2... d5
{[%clk 0:02:59]} 3. e5 {[%clk 0:02:59]} 3... c5 {[%clk 0:02:58.5]} 4. Nf3 {[%clk
0:02:58.8]} 4... Nc6 {[%clk 0:02:56.2]} 5. dxc5 {[%clk 0:02:55.5]} 5... e6
{[%clk 0:02:55.5]} 6. Bd3 {[%clk 0:02:51.6]} 6... Bxc5 {[%clk 0:02:54]} 7. O-O
{[%clk 0:02:50.6]} 7... Nge7 {[%clk 0:02:54.1]} 8. Nbd2 {[%clk 0:02:50]} 8...
Ng6 {[%clk 0:02:54.1]} 9. Nb3 {[%clk 0:02:50]} 9... Bb6 {[%clk 0:02:51.2]} 10.
Re1 {[%clk 0:02:49.6]} 10... O-O {[%clk 0:02:49.1]} 11. Be3 {[%clk 0:02:41.2]}
11... Bd7 {[%clk 0:02:40.4]} 12. Bxb6 {[%clk 0:02:37]} 12... Qxb6 {[%clk
0:02:40.1]} 13. Qd2 {[%clk 0:02:36.3]} 13... Rac8 {[%clk 0:02:32.9]} 14. c3
{[%clk 0:02:33.2]} 14... f5 {[%clk 0:02:26.4]} 15. exf6 {[%clk 0:02:16.8]} 15...
gxf6 {[%clk 0:02:23]} 16. Qh6 {[%clk 0:02:02.2]} 16... Nce7 {[%clk 0:02:22]} 17.
h4 {[%clk 0:01:50.8]} 17... e5 {[%clk 0:02:10.3]} 18. h5 {[%clk 0:01:39.4]}
18... e4 {[%clk 0:02:09.8]} 19. hxg6 {[%clk 0:01:28.2]} 19... Nxg6 {[%clk
0:02:05.3]} 20. Nh4 {[%clk 0:01:13.4]} 20... Nxh4 {[%clk 0:01:17.8]} 21. Qxh4
{[%clk 0:01:14.3]} 21... exd3 {[%clk 0:01:17.9]} 22. Qg3+ {[%clk 0:01:10.2]}
22... Kf7 {[%clk 0:01:14.7]} 23. Qxd3 {[%clk 0:01:08]} 23... Kg7 {[%clk
0:00:33.7]} 24. Re7+ {[%clk 0:00:57.7]} 24... Rf7 {[%clk 0:00:33.7]} 25. Rxf7+
{[%clk 0:00:54.7]} 25... Kxf7 {[%clk 0:00:34.6]} 26. Qxh7+ {[%clk 0:00:54.3]}
26... Ke8 {[%clk 0:00:31.8]} 27. Qh8+ {[%clk 0:00:47.9]} 27... Ke7 {[%clk
0:00:31.9]} 28. Re1+ {[%clk 0:00:47.2]} 28... Kd6 {[%clk 0:00:31.5]} 29. Qxf6+
{[%clk 0:00:46.6]} 29... Kc7 {[%clk 0:00:31.5]} 30. Qe5+ {[%clk 0:00:32.9]}
30... Qd6 {[%clk 0:00:28.7]} 31. Nd4 {[%clk 0:00:32.8]} 31... a6 {[%clk
0:00:25.3]} 32. Qxd6+ {[%clk 0:00:23.3]} 32... Kxd6 {[%clk 0:00:25.4]} 33. f3
{[%clk 0:00:23.7]} 33... b5 {[%clk 0:00:23.5]} 34. a3 {[%clk 0:00:22.6]} 34...
Rc4 {[%clk 0:00:23.1]} 35. Kf2 {[%clk 0:00:22.3]} 35... a5 {[%clk 0:00:23.3]}
36. Nc2 {[%clk 0:00:20.2]} 36... Rc8 {[%clk 0:00:18.4]} 37. Rd1 {[%clk
0:00:20.2]} 37... Kc5 {[%clk 0:00:17.6]} 38. Rd4 {[%clk 0:00:18.9]} 38... a4
{[%clk 0:00:15.5]} 39. Nb4 {[%clk 0:00:17.9]} 39... Be6 {[%clk 0:00:14.8]} 40.
g4 {[%clk 0:00:18.1]} 40... Rf8 {[%clk 0:00:14.3]} 41. Kg3 {[%clk 0:00:17.9]}
41... Kd6 {[%clk 0:00:14.4]} 42. f4 {[%clk 0:00:17]} 42... Rg8 {[%clk
0:00:14.6]} 43. f5 {[%clk 0:00:16.9]} 43... Bxf5 {[%clk 0:00:14.7]} 44. Rxd5+
{[%clk 0:00:17.2]} 44... Ke6 {[%clk 0:00:10.9]} 45. Rxf5 {[%clk 0:00:17.5]}
45... Rd8 {[%clk 0:00:11.2]} 46. Rf2 {[%clk 0:00:17.2]} 46... Rd1 {[%clk
0:00:07.1]} 47. g5 {[%clk 0:00:16.9]} 47... Rg1+ {[%clk 0:00:07.2]} 48. Kf4
{[%clk 0:00:17.3]} 48... Ke7 {[%clk 0:00:06.4]} 49. Kf5 {[%clk 0:00:17.3]} 49...
Ke8 {[%clk 0:00:05]} 50. Kf6 {[%clk 0:00:17.2]} 50... Kf8 {[%clk 0:00:04.3]} 51.
Nc6 {[%clk 0:00:16]} 51... Re1 {[%clk 0:00:01.7]} 52. Ne5 {[%clk 0:00:15.5]}
52... Kg8 {[%clk 0:00:01.7]} 53. Nc6 {[%clk 0:00:12.3]} 1-0